bitfinex/quotes_SOLUSD_20250907
["timestamp","ask_amount","ask_price","bid_price","bid_amount"]
[1757236658980,18.08155277,204.0,203.98,0.03]
[1757236659157,2.49272517,203.99,203.98,0.03]
[1757236659478,4.45625265,203.99,203.98,0.03]
[1757236659654,5.16625265,203.99,203.98,0.03]
[1757236661068,10.06845373,203.99,203.98,0.03]
[1757236664775,6.86572856,203.99,203.98,0.03]
[1757236664970,7.39492625,203.99,203.98,0.03]
[1757236665574,7.39492625,203.99,203.98,0.72]
[1757236665889,7.39492625,203.99,203.98,0.03]
[1757236666270,9.35826097,203.99,203.98,0.03]
[1757236666469,10.06826097,203.99,203.98,0.03]
[1757236669294,22.32376369,203.99,203.95,0.03]
[1757236669496,2.49272517,203.96,203.95,0.03]
[1757236669797,4.90292214,203.96,203.95,0.03]
[1757236669963,10.05936758,203.96,203.95,0.03]
[1757236671767,6.86664241,203.96,203.95,0.03]
[1757236671968,9.35936758,203.96,203.95,0.74]
[1757236672171,7.39564731,203.96,203.95,0.74]
[1757236672483,7.39564731,203.96,203.95,0.03]
[1757236673397,7.39564731,203.96,203.95,0.74]
[1757236674499,7.39564731,203.96,203.95,0.03]
[1757236674797,4.90292214,203.96,203.95,0.03]
[1757236675009,7.39564731,203.96,203.95,0.03]
[1757236675191,7.39564731,203.96,203.95,0.74]
[1757236676691,7.39564731,203.96,203.95,0.03]
[1757236679706,4.90292214,203.96,203.95,0.03]
[1757236679914,7.39564731,203.96,203.95,0.74]
[1757236681599,7.39564731,203.96,203.95,0.03]
[1757236685889,7.39564731,203.96,203.95,0.74]
[1757236687186,7.39564731,203.96,203.95,38.4]
[1757236689117,7.39564731,203.96,203.95,38.38]
[1757236689609,2.49272517,203.96,203.95,38.38]
[1757236691696,0.06,203.97,203.95,38.38]
[1757236691894,2.55272517,203.97,203.96,0.71]
[1757236694418,0.06,203.97,203.96,0.71]
[1757236696996,0.06,203.97,203.96,37.64]
[1757236697206,2.55272517,203.97,203.96,37.64]
[1757236697722,2.55272517,203.97,203.96,38.35]
[1757236698606,0.06,203.97,203.96,38.35]
[1757236699918,0.06,203.97,203.96,37.62]
[1757236700596,2.55272517,203.97,203.95,0.03]
[1757236700801,2.55272517,203.97,203.96,37.62]
[1757236700998,3.27272517,203.97,203.95,0.03]
[1757236701310,0.78,203.97,203.96,37.62]
[1757236701518,3.27272517,203.97,203.96,37.62]
[1757236701819,8.17540693,203.97,203.96,37.62]
[1757236702007,7.45540693,203.97,203.96,37.62]
[1757236702592,8.17540693,203.97,203.96,37.62]
[1757236704616,8.17540693,203.97,203.96,37.65]
[1757236705207,4.96268176,203.97,203.96,38.34]
[1757236705519,7.45540693,203.97,203.96,38.34]
[1757236706033,2.55272517,203.97,203.96,38.34]
[1757236706327,0.06,203.97,203.96,38.34]
[1757236709709,4.96268176,203.97,203.96,37.65]
[1757236709910,8.8588089,203.97,203.96,37.65]
[1757236710719,4.96268176,203.97,203.96,38.34]
[1757236710928,8.8588089,203.97,203.96,37.65]
[1757236711324,8.8588089,203.97,203.96,0.03]
[1757236711824,9.5788089,203.97,203.96,37.63]
[1757236712025,9.5788089,203.97,203.96,0.03]
[1757236712327,9.5788089,203.97,203.96,37.65]
[1757236712529,9.5788089,203.97,203.96,0.03]
[1757236713132,11.54252917,203.97,203.96,0.03]
[1757236713733,4.9036434,203.93,203.87,0.03]
[1757236713915,3.89612714,203.92,203.9,0.72]
[1757236714111,3.89612714,203.92,203.9,0.03]
[1757236714312,4.61612714,203.92,203.9,0.03]
[1757236714512,4.61612714,203.92,203.9,23.65]
[1757236714717,4.61612714,203.92,203.9,0.03]
[1757236715337,3.89612714,203.92,203.91,0.72]
[1757236715635,4.90342377,203.94,203.91,0.72]
[1757236716026,4.90342377,203.94,203.91,0.03]
[1757236716225,3.89612714,203.93,203.91,0.03]
[1757236716428,3.89612714,203.93,203.92,37.68]
[1757236717938,4.90316253,203.95,203.92,37.68]
[1757236718123,3.89612714,203.93,203.92,37.68]
[1757236718320,5.62316253,203.95,203.92,37.68]
[1757236718321,3.89612714,203.94,203.92,38.37]
[1757236719020,3.89612714,203.94,203.93,0.69]
[1757236719431,8.7995301,203.94,203.93,0.69]
[1757236720239,4.90292214,203.96,203.93,0.69]
[1757236720547,3.89612714,203.95,203.93,0.69]
[1757236720721,3.89612714,203.95,203.94,0.69]
[1757236721947,8.79928967,203.95,203.94,0.69]
[1757236722525,8.80047325,203.95,203.94,0.69]
[1757236722933,4.96268176,203.97,203.94,0.69]
[1757236723143,3.89731072,203.95,203.94,0.69]
[1757236723452,3.89731072,203.95,203.92,37.71]
[1757236723627,3.89731072,203.95,203.93,0.69]
[1757236725258,4.90340296,203.94,203.92,37.71]
[1757236725764,4.90340296,203.94,203.93,0.69]
[1757236726351,4.90316253,203.95,203.93,0.69]
[1757236726948,8.80047325,203.95,203.93,0.69]
[1757236728040,3.89731072,203.95,203.94,0.69]
[1757236728546,3.89731072,203.95,203.92,38.4]
[1757236728844,3.89731072,203.95,203.93,0.69]
[1757236729454,4.90340296,203.94,203.93,0.69]
[1757236729760,8.80071368,203.94,203.92,37.71]
[1757236729934,8.80071368,203.94,203.92,38.43]
[1757236730352,8.80071368,203.94,203.92,0.75]
[1757236730559,8.80071368,203.94,203.93,37.66]
[1757236730747,8.80071368,203.94,203.92,0.75]
[1757236730958,8.80071368,203.94,203.93,37.66]
[1757236732257,4.90340296,203.94,203.93,37.66]
[1757236732461,4.90340296,203.94,203.93,38.38]
[1757236735246,9.46071368,203.94,203.93,37.64]
[1757236735931,8.80071368,203.94,203.93,37.64]
[1757236737165,4.90340296,203.94,203.93,37.64]
[1757236737347,8.80071368,203.94,203.93,37.64]
[1757236737659,9.46071368,203.94,203.93,37.64]
[1757236738860,8.80071368,203.94,203.93,37.64]
[1757236739245,9.46071368,203.94,203.93,37.64]
[1757236740959,8.80071368,203.94,203.93,37.64]
[1757236744262,4.96322149,203.95,203.93,38.36]
[1757236744461,4.96322149,203.95,203.94,0.72]
[1757236744462,0.06,203.95,203.94,0.72]
[1757236745541,0.04,203.95,203.94,0.72]
[1757236748872,0.04,203.95,203.94,14.31559401]
[1757236749554,0.04,203.95,203.94,18.21290473]
[1757236751263,0.04,203.95,203.94,14.31559401]
[1757236751472,0.04,203.95,203.94,18.21290473]
[1757236753578,0.02,203.95,203.94,18.21290473]
[1757236754456,0.02,203.95,203.94,14.31559401]
[1757236754773,0.02,203.95,203.94,18.21290473]
[1757236755580,0.02,203.95,203.94,51.21559401]
[1757236757177,0.02,203.95,203.94,37.62]
[1757236758456,0.02,203.95,203.94,38.34]
[1757236758658,0.02,203.95,203.94,37.62]
[1757236759974,0.02,203.95,203.94,38.3]
[1757236760667,0.02,203.95,203.94,37.62]
[1757236762171,0.02,203.95,203.92,0.03]
[1757236762375,0.02,203.95,203.92,0.71]
[1757236762590,0.02,203.95,203.93,51.19559401]
[1757236762875,0.02,203.95,203.93,37.6]
[1757236763373,0.02,203.95,203.93,38.28]
[1757236766458,0.02,203.95,203.94,0.68]
[1757236769182,0.02,203.95,203.93,37.6]
[1757236769569,0.02,203.95,203.93,38.28]
[1757236770100,0.02,203.95,203.93,37.6]
[1757236771081,0.02,203.95,203.93,26.0]
[1757236771265,0.02,203.95,203.94,37.58]
[1757236771576,4.92316253,203.95,203.94,37.58]
[1757236773687,5.60316253,203.95,203.94,37.58]
[1757236773988,8.09677536,203.95,203.94,37.58]
[1757236774488,8.09677536,203.95,203.93,0.03]
[1757236774676,4.92316253,203.95,203.94,37.56]
[1757236775269,5.60316253,203.95,203.94,37.56]
[1757236775769,8.09677536,203.95,203.94,37.56]
[1757236777284,7.41677536,203.95,203.94,37.56]
[1757236782194,8.09677536,203.95,203.93,0.03]
[1757236782399,4.92316253,203.95,203.94,37.56]
[1757236783579,7.41677536,203.95,203.94,37.56]
[1757236785132,7.41677536,203.95,203.94,38.24]
[1757236785294,7.41677536,203.95,203.94,37.56]
[1757236785481,8.09677536,203.95,203.94,37.56]
[1757236785674,8.09677536,203.95,203.94,37.54]
[1757236787503,8.09677536,203.95,203.93,37.57]
[1757236787679,2.49361283,203.94,203.93,37.57]
[1757236787882,3.17361283,203.94,203.93,37.57]
[1757236789884,8.07701579,203.94,203.93,37.57]
[1757236791497,7.39701579,203.94,203.93,37.57]
[1757236791806,7.39701579,203.94,203.93,38.24]
[1757236796197,7.39701579,203.94,203.93,37.57]
[1757236800826,4.92316253,203.95,203.93,37.57]
[1757236801000,2.49361283,203.94,203.93,37.57]
[1757236802614,2.49361283,203.94,203.93,38.24]
[1757236803427,4.92316253,203.95,203.93,38.24]
[1757236803638,7.39701579,203.94,203.93,38.24]
[1757236804527,4.90340296,203.94,203.93,38.24]
[1757236804729,0.02,203.95,203.93,38.24]
[1757236805025,2.49361283,203.94,203.93,38.24]
[1757236805822,7.39701579,203.94,203.93,38.24]
[1757236808330,2.49361283,203.94,203.93,38.24]
[1757236808530,0.02,203.95,203.93,38.24]
[1757236808735,2.49361283,203.94,203.93,37.57]
[1757236809398,2.49361283,203.94,203.93,38.24]
[1757236810721,0.02,203.95,203.93,38.24]
[1757236810897,0.02,203.95,203.93,37.57]
[1757236811104,0.02,203.95,203.94,0.67]
[1757236811425,7.41677536,203.95,203.94,0.67]
[1757236812628,0.02,203.95,203.94,0.67]
[1757236812808,2.51361283,203.95,203.94,0.67]
[1757236814905,7.41677536,203.95,203.94,0.67]
[1757236816727,2.51361283,203.95,203.94,0.67]
[1757236819333,0.02,203.95,203.94,0.67]
[1757236819634,2.51361283,203.95,203.94,0.67]
[1757236819812,0.02,203.95,203.94,0.67]
[1757236820633,2.51361283,203.95,203.94,0.67]
[1757236822111,0.02,203.95,203.94,0.67]
[1757236822323,2.51361283,203.95,203.94,0.67]
[1757236822530,0.02,203.95,203.94,0.67]
[1757236822712,2.51361283,203.95,203.94,0.67]
[1757236824937,2.51361283,203.95,203.94,0.7]
[1757236825731,7.41677536,203.95,203.94,63.55]
[1757236826038,2.51361283,203.95,203.94,63.55]
[1757236826503,2.51361283,203.95,203.94,64.25]
[1757236827135,7.41677536,203.95,203.94,64.25]
[1757236828730,7.41677536,203.95,203.94,26.73]
[1757236829034,7.41677536,203.95,203.94,64.25]
[1757236829431,3.9171473,203.95,203.94,64.25]
[1757236831641,0.02,203.95,203.94,64.25]
[1757236831837,3.9171473,203.95,203.94,64.25]
[1757236832043,3.9171473,203.95,203.94,69.15300344]
[1757236832413,0.02,203.95,203.94,69.15300344]
[1757236832723,3.9171473,203.95,203.94,63.55]
[1757236834445,3.9171473,203.95,203.94,64.25]
[1757236835830,8.82030983,203.95,203.94,64.25]
[1757236836133,8.82030983,203.95,203.94,26.73]
[1757236836320,8.82030983,203.95,203.94,64.25]
[1757236836921,8.82030983,203.95,203.94,0.03]
[1757236837245,9.48030983,203.95,203.94,0.03]
[1757236837545,9.48030983,203.95,203.94,37.55]
[1757236837847,18.30061966,203.95,203.94,37.55]
[1757236841128,18.30061966,203.95,203.94,0.03]
[1757236849543,17.64061966,203.95,203.94,0.03]
[1757236852551,18.30061966,203.95,203.94,0.03]
[1757236854161,18.30061966,203.95,203.93,1e-08]
[1757236854363,13.74347236,203.95,203.93,1e-08]
[1757236854669,3.8971473,203.94,203.93,1e-08]
[1757236855260,18.62721874,203.94,203.93,1e-08]
[1757236855559,18.62721874,203.94,203.93,0.67000001]
[1757236856765,23.5306217,203.94,203.93,0.67000001]
[1757236856968,23.5306217,203.94,203.93,1e-08]
[1757236864171,24.1906217,203.94,203.93,1e-08]
[1757236864361,23.5306217,203.94,203.93,1e-08]
[1757236865953,24.1906217,203.94,203.93,1e-08]
[1757236867071,23.5306217,203.94,203.93,1e-08]
[1757236867368,23.5306217,203.94,203.93,0.67000001]
[1757236868780,23.5306217,203.94,203.93,1e-08]
[1757236870189,19.6334744,203.94,203.93,1e-08]
[1757236870474,23.5306217,203.94,203.93,1e-08]
[1757236875096,23.5906217,203.94,203.93,1e-08]
[1757236879505,23.5906217,203.94,203.93,0.69000001]
[1757236886112,8.86055026,203.94,203.93,0.69000001]
[1757236888687,4.96340296,203.94,203.93,0.69000001]
[1757236889011,8.86055026,203.94,203.93,0.69000001]
[1757236891514,7.45805884,203.94,203.93,0.69000001]
[1757236892712,8.14805884,203.94,203.93,1e-08]
[1757236892909,7.45805884,203.94,203.93,0.69000001]
[1757236893294,9.42177911,203.94,203.93,0.69000001]
[1757236893496,7.45805884,203.94,203.93,0.69000001]
[1757236894399,7.45805884,203.94,203.93,38.19000001]
[1757236897186,7.45805884,203.94,203.93,0.69000001]
[1757236897391,7.45805884,203.94,203.93,38.19000001]
[1757236898101,2.55465588,203.94,203.93,38.19000001]
[1757236900011,7.45805884,203.94,203.93,0.69000001]
[1757236900314,7.45805884,203.94,203.93,38.19000001]
[1757236908316,7.45805884,203.94,203.93,37.50000001]
[1757236910013,7.45805884,203.94,203.93,38.19000001]
[1757236910207,7.45805884,203.94,203.93,1e-08]
[1757236910412,8.14805884,203.94,203.93,37.50000001]
[1757236912827,7.45805884,203.94,203.93,37.50000001]
[1757236918828,7.45805884,203.94,203.93,1e-08]
[1757236919132,7.45805884,203.94,203.93,37.50000001]
[1757236922033,7.45805884,203.94,203.93,37.48000001]
[1757236923228,7.45805884,203.94,203.93,38.17000001]
[1757236926339,4.96340296,203.94,203.93,38.17000001]
[1757236926525,7.45805884,203.94,203.93,38.17000001]
[1757236929643,4.96340296,203.94,203.93,38.17000001]
[1757236929829,0.06,203.94,203.93,38.17000001]
[1757236930030,0.04,203.94,203.93,38.17000001]
[1757236930742,0.00267422,203.94,203.93,41.59190441]
[1757236931440,0.00267422,203.94,203.93,55.18749842]
[1757236931640,0.00267422,203.94,203.93,60.09045998]
[1757236934118,0.00267422,203.94,203.93,60.08268834]
[1757236938056,0.05461319,203.97,203.96,39.59559401]
[1757236938235,0.05461319,203.97,203.96,80.48972677]
[1757236938548,0.05461319,203.97,203.96,81.17972677]
[1757236938849,0.05461319,203.97,203.96,83.14248346]
[1757236941447,0.05461319,203.97,203.96,45.66248346]
[1757236941754,0.05461319,203.97,203.96,41.58413276]
[1757236942147,0.05461319,203.97,203.96,41.57785208]
[1757236944042,2.54926907,203.97,203.96,41.57785208]
[1757236944633,0.05461319,203.97,203.96,41.57785208]
[1757236944838,2.54926907,203.97,203.96,55.15344609]
[1757236945048,2.54926907,203.97,203.96,60.11564717]
[1757236945368,0.05461319,203.97,203.96,60.11564717]
[1757236946360,0.05461319,203.97,203.96,22.65564717]
[1757236946658,0.05461319,203.97,203.96,60.11564717]
[1757236947955,0.05461319,203.97,203.96,22.65564717]
[1757236948150,0.05461319,203.97,203.96,60.11564717]
[1757236948151,2.54926907,203.97,203.96,60.11564717]
[1757236948754,2.54926907,203.97,203.96,21.96564717]
[1757236949054,2.54926907,203.97,203.96,59.42564717]
[1757236949264,2.54926907,203.97,203.96,60.14564717]
[1757236949641,2.54926907,203.97,203.96,46.55005316]
[1757236949855,7.45195083,203.97,203.96,41.58785208]
[1757236951345,0.05461319,203.97,203.96,30.12785208]
[1757236951546,0.05461319,203.97,203.96,67.58785208]
[1757236951547,2.54926907,203.97,203.96,67.58785208]
[1757236952952,8.14195083,203.97,203.96,29.40785208]
[1757236953157,7.45195083,203.97,203.96,66.86785208]
[1757236953468,8.85368966,203.97,203.96,66.86785208]
[1757236955747,8.85368966,203.97,203.96,67.58785208]
[1757236959149,3.9510079,203.97,203.96,67.58785208]
[1757236959571,3.9510079,203.97,203.96,67.61785208]
[1757236961474,3.9510079,203.97,203.96,86.17609199]
[1757236965481,0.05461319,203.97,203.96,86.17609199]
[1757236965695,3.9510079,203.97,203.96,86.17609199]
[1757236967476,0.05461319,203.97,203.96,86.17609199]
[1757236967681,3.9510079,203.97,203.96,81.21344609]
[1757236967985,3.9510079,203.97,203.96,43.75344609]
[1757236968287,3.9510079,203.97,203.96,81.21344609]
[1757236971465,3.9510079,203.97,203.96,86.1756922]
[1757236973074,2.61866821,203.97,203.96,86.1756922]
[1757236973569,0.06,203.98,203.97,13.59559401]
[1757236973770,0.06,203.98,203.97,17.66344609]
[1757236973971,0.06,203.98,203.97,17.66121256]
[1757236974771,3.95639471,203.98,203.97,17.66121256]
[1757236974968,3.95639471,203.98,203.97,17.00121256]
[1757236975375,3.95639471,203.98,203.97,17.66121256]
[1757236975874,3.95639471,203.98,203.97,17.00121256]
[1757236976075,0.27814043,203.98,203.97,17.00121256]
[1757236976474,3.95639471,203.99,203.97,17.66121256]
[1757236976700,3.95639471,203.99,203.98,40.84561855]
[1757236976880,3.95639471,203.99,203.98,41.50561855]
[1757236977078,3.95639471,203.99,203.98,38.1]
[1757236977895,3.95639471,203.99,203.98,37.44]
[1757236981095,8.85859579,203.99,203.98,37.44]
[1757236981393,8.85859579,203.99,203.97,14.25559401]
[1757236981601,3.89639471,203.98,203.97,13.59559401]
[1757236981780,3.89639471,203.98,203.97,51.03559401]
[1757236982479,8.79883612,203.98,203.97,51.03559401]
[1757236982799,9.46883612,203.98,203.97,37.44]
[1757236982969,8.79883612,203.98,203.97,37.44]
[1757236984895,9.46883612,203.98,203.97,37.44]
[1757236985081,8.79883612,203.98,203.97,37.44]
[1757236986092,5.88936397,203.98,203.97,37.44]
[1757236988015,4.90244141,203.98,203.97,37.44]
[1757236988308,8.79883612,203.98,203.97,37.44]
[1757236989284,0.06,203.99,203.97,38.1]
[1757236989586,3.89639471,203.98,203.97,37.44]
[1757236990997,8.79883612,203.98,203.97,37.44]
[1757236991921,4.96225053,203.99,203.97,38.1]
[1757236992086,4.96225053,203.99,203.98,0.66]
[1757236995119,4.96225053,203.99,203.97,37.47]
[1757236995415,3.95639471,203.99,203.97,38.13]
[1757236995613,3.95639471,203.99,203.97,37.47]
[1757236995916,3.95639471,203.99,203.98,0.66]
[1757236997399,0.06,203.99,203.98,0.66]
[1757236998393,3.89639471,204.0,203.98,0.66]
[1757236998715,3.89639471,204.0,203.99,37.44]
[1757236999095,3.89639471,204.0,203.98,0.66]
[1757236999292,3.89639471,203.99,203.98,0.66]
[1757236999508,3.89639471,204.0,203.98,38.1]
[1757237001719,4.90220108,203.99,203.98,37.44]
[1757237005021,4.90196078,204.0,203.98,37.44]
[1757237005200,8.79835549,204.0,203.98,37.44]
[1757237008096,8.79835549,204.0,203.98,38.1]
[1757237008312,8.79835549,204.0,203.98,37.44]
[1757237008619,8.79835549,204.0,203.98,38.1]
[1757237011426,8.85835549,204.0,203.98,38.1]
[1757237015404,7.45498349,204.0,203.98,38.1]
[1757237016726,7.45498349,204.0,203.97,0.03]
[1757237016905,7.39546412,203.98,203.97,14.28559401]
[1757237017104,7.39546412,203.98,203.97,51.70559401]
[1757237027044,2.49302271,203.98,203.97,51.70559401]
[1757237028233,4.90220108,203.99,203.97,51.70559401]
[1757237028531,2.49302271,203.98,203.97,51.04559401]
[1757237029047,2.49302271,203.98,203.97,51.70559401]
[1757237037145,1.79480968,203.98,203.97,51.70559401]
[1757237038954,1.79480968,203.98,203.97,51.04559401]
[1757237040147,1.79480968,203.98,203.97,51.73559401]
[1757237040565,6.69725109,203.98,203.97,51.04559401]
[1757237041954,6.69725109,203.98,203.97,51.73559401]
[1757237042858,6.69725109,203.98,203.97,13.62559401]
[1757237043038,6.69725109,203.98,203.97,51.02559401]
[1757237044169,1.79480968,203.98,203.97,51.02559401]
[1757237045066,4.90226679,203.99,203.97,51.02559401]
[1757237045250,2.49302271,203.98,203.97,51.02559401]
[1757237045560,2.55302271,203.98,203.97,51.02559401]
[1757237046857,7.45546412,203.98,203.97,51.02559401]
[1757237048668,7.45546412,203.98,203.97,51.71559401]
[1757237048870,7.45546412,203.98,203.97,51.02559401]
[1757237050162,7.45546412,203.98,203.97,51.71559401]
[1757237050375,7.45546412,203.98,203.97,51.02559401]
[1757237051548,7.45546412,203.98,203.97,51.71559401]
[1757237052174,2.55302271,203.98,203.97,51.71559401]
[1757237053164,1.85156517,203.98,203.97,51.71559401]
[1757237054347,2.49302271,203.99,203.97,51.71559401]
[1757237056868,7.39539525,203.99,203.97,51.71559401]
[1757237057076,2.49302271,203.98,203.97,51.71559401]
[1757237061080,1.81652661,203.98,203.97,51.71559401]
[1757237062881,1.81652661,203.98,203.97,51.02559401]
[1757237063073,6.71896802,203.98,203.97,51.73559401]
[1757237065074,6.71896802,203.98,203.97,14.33559401]
[1757237065400,6.71896802,203.98,203.97,37.43]
[1757237065881,13.43793604,203.98,203.97,37.43]
[1757237071782,13.43793604,203.98,203.97,0.03]
[1757237071985,13.43793604,203.98,203.97,37.43]
[1757237075264,13.43793604,203.98,203.97,37.41]
[1757237076183,13.43793604,203.98,203.97,38.12]
[1757237076380,13.43793604,203.98,203.97,0.74]
[1757237076570,13.43793604,203.98,203.97,38.12]
[1757237077091,13.43793604,203.98,203.97,0.03]
[1757237077276,13.43793604,203.98,203.97,37.41]
[1757237077587,15.5171838,203.98,203.97,37.41]
[1757237079397,11.62140943,203.98,203.97,38.12]
[1757237079584,15.5171838,203.98,203.97,38.12]
[1757237081196,15.5771838,203.98,203.97,38.12]
[1757237088196,11.68140943,203.98,203.97,38.12]
[1757237090101,6.77896802,203.98,203.97,51.71559401]
[1757237090290,0.06,203.98,203.97,51.71559401]
[1757237091695,3.95577437,203.98,203.97,51.71559401]
[1757237092089,0.06,203.98,203.97,51.71559401]
[1757237093782,0.06,203.98,203.97,66.43554691]
[1757237096811,0.06,203.98,203.97,66.43554691]
[1757237100317,3.95577437,203.98,203.97,66.43554691]
[1757237104713,9.54821578,203.98,203.96,0.03]
[1757237104895,3.89577437,203.97,203.96,0.03]
[1757237105094,3.89577437,203.97,203.96,25.29]
[1757237105312,6.5491091,203.97,203.96,25.29]
[1757237106117,5.8591091,203.97,203.96,25.29]
[1757237107117,10.76179086,203.97,203.96,25.29]
[1757237108422,11.45179086,203.97,203.96,25.29]
[1757237111322,11.45179086,203.97,203.96,0.03]
[1757237111500,11.45179086,203.97,203.94,0.03]
[1757237111823,3.89577437,203.95,203.93,1e-08]
[1757237112028,3.89577437,203.94,203.93,37.38000001]
[1757237112219,4.58577437,203.94,203.93,37.38000001]
[1757237112395,18.21136838,203.94,203.93,37.38000001]
[1757237113225,23.11477134,203.94,203.93,37.38000001]
[1757237117029,23.11477134,203.94,203.93,1e-08]
[1757237117927,35.37327874,203.94,203.9,0.03]
[1757237118244,3.89577437,203.91,203.9,0.03]
[1757237119117,23.52852381,203.91,203.9,0.03]
[1757237120333,24.21852381,203.91,203.9,0.03]
[1757237123241,23.52852381,203.91,203.9,0.03]
[1757237123430,23.52852381,203.91,203.9,0.72]
[1757237124333,132.3,203.96,203.9,14.31559401]
[1757237124637,136.19577437,203.96,203.92,13.59559401]
[1757237124935,3.89577437,203.95,203.93,38.07]
[1757237125110,3.89577437,203.95,203.94,0.69]
[1757237126124,137.20297573,203.96,203.94,0.69]
[1757237126325,3.89577437,203.95,203.94,0.69]
[1757237126634,4.90340296,203.94,203.93,50.97559401]
[1757237127225,4.90340296,203.94,203.93,51.66559401]
[1757237129542,4.90340296,203.94,203.9,15.44356506]
[1757237129747,3.89577437,203.91,203.9,0.03]
[1757237129916,3.89577437,203.91,203.9,51.00559401]
[1757237130466,3.89577437,203.91,203.9,51.69559401]
[1757237131038,3.89577437,203.91,203.9,37.41]
[1757237131628,8.79989873,203.91,203.9,37.41]
[1757237134535,8.79989873,203.91,203.9,0.03]
[1757237134735,8.79989873,203.91,203.9,37.41]
[1757237135531,4.90412436,203.91,203.9,37.41]
[1757237135744,8.79989873,203.91,203.9,37.41]
[1757237137446,7.39957811,203.91,203.9,37.41]
[1757237139236,8.08957811,203.91,203.9,37.41]
[1757237139733,8.08957811,203.91,203.89,0.03]
[1757237139932,3.18545375,203.9,203.89,0.03]
[1757237140345,2.49545375,203.9,203.89,0.03]
[1757237143134,8.08981863,203.9,203.89,0.03]
[1757237143348,5.59436488,203.9,203.89,0.03]
[1757237143552,8.08981863,203.9,203.89,0.03]
[1757237143760,7.39981863,203.9,203.89,0.03]
[1757237145975,8.08981863,203.9,203.89,0.03]
[1757237146269,7.39981863,203.9,203.89,0.03]
[1757237147652,7.39981863,203.9,203.89,0.72]
[1757237149262,7.39981863,203.9,203.89,0.03]
[1757237149838,7.39981863,203.9,203.89,0.74]
[1757237154156,7.39981863,203.9,203.89,0.03]
[1757237160386,4.90436488,203.9,203.89,0.03]
[1757237160758,7.39981863,203.9,203.89,0.03]
[1757237164671,8.11981863,203.9,203.89,0.03]
[1757237165756,18.10163363,203.9,203.89,0.03]
[1757237166662,20.06573959,203.9,203.89,0.03]
[1757237166862,20.12573959,203.9,203.89,0.03]
[1757237167283,2.49545375,203.89,203.88,1e-08]
[1757237167666,7.40005917,203.89,203.88,1e-08]
[1757237167868,8.12005917,203.89,203.88,1e-08]
[1757237168077,10.08416513,203.89,203.88,1e-08]
[1757237168779,9.36416513,203.89,203.88,1e-08]
[1757237170260,9.36416513,203.89,203.88,0.71000001]
[1757237170460,9.36416513,203.89,203.88,1e-08]
[1757237181196,10.05416513,203.89,203.88,1e-08]
[1757237181699,7.55871138,203.89,203.88,1e-08]
[1757237181908,10.05416513,203.89,203.88,1e-08]
[1757237182791,9.36416513,203.89,203.88,1e-08]
[1757237185298,10.11416513,203.89,203.88,1e-08]
[1757237186688,9.42416513,203.89,203.88,1e-08]
[1757237187608,10.11416513,203.89,203.88,1e-08]
[1757237187905,9.42416513,203.89,203.88,1e-08]
[1757237189076,9.42416513,203.89,203.88,0.71000001]
[1757237189474,9.42416513,203.89,203.88,1e-08]
[1757237190409,10.11416513,203.89,203.88,1e-08]
[1757237190584,9.42416513,203.89,203.88,1e-08]
[1757237192289,10.11416513,203.89,203.88,1e-08]
[1757237194097,10.11416513,203.89,203.86,1e-08]
[1757237194314,2.49545375,203.87,203.86,1e-08]
[1757237194480,7.40054032,203.87,203.86,1e-08]
[1757237194682,9.36493566,203.87,203.86,1e-08]
[1757237195718,10.05493566,203.87,203.86,1e-08]
[1757237197584,11.46139361,203.87,203.84,1e-08]
[1757237197779,3.9019117,203.85,203.84,1e-08]
[1757237198405,5.8665,203.85,203.84,1e-08]
[1757237199113,10.77206781,203.85,203.84,1e-08]
[1757237200303,11.46206781,203.85,203.84,1e-08]
[1757237203299,6.87015611,203.85,203.84,1e-08]
[1757237203497,10.77206781,203.85,203.84,1e-08]